bitfinex/quotes_ETHUSD_20241103
["timestamp","ask_amount","ask_price","bid_price","bid_amount"]
[1730592002716,1.62819276,2493.8,2493.4,0.55]
[1730592004511,1.62819276,2493.6,2493.2,0.55]
[1730592004714,2.44289276,2493.6,2493.2,0.55]
[1730592005018,2.44289276,2493.6,2493.2,0.98793]
[1730592005320,0.8147,2493.6,2493.2,0.55]
[1730592010512,1.62819276,2493.4,2492.9,0.7533]
[1730592010681,1.62819276,2493.4,2493.0,0.55]
[1730592012617,2.44289276,2493.6,2493.0,0.55]
[1730592012830,0.24428928,2493.5,2493.0,0.55]
[1730592017808,0.03561262,2493.4,2493.0,0.55]
[1730592022512,0.8147,2493.6,2493.0,0.55]
[1730592022713,0.03542665,2493.3,2493.0,0.55]
[1730592022921,0.8147,2493.6,2493.0,0.55]
[1730592023218,0.03542604,2493.2,2493.0,0.55]
[1730592023437,0.8147,2493.6,2493.0,0.55]
[1730592023818,0.03542703,2493.5,2493.0,0.55]
[1730592025524,0.03542703,2493.5,2492.9,0.7533]
[1730592025525,0.03542703,2493.5,2493.2,0.55]
[1730592025724,0.03542703,2493.5,2493.4,0.55]
[1730592025934,0.7535,2493.8,2493.4,0.55]
[1730592026573,0.03543106,2493.7,2493.4,0.55]
[1730592026943,0.7535,2493.8,2493.4,0.55]
[1730592027137,1.68848836,2494.0,2493.5,0.8166]
[1730592027338,1.68848836,2494.0,2493.6,0.55]
[1730592030537,4.00979,2493.9,2493.6,0.55]
[1730592034144,4.01026,2493.6,2493.1,0.8166]
[1730592034368,5.63845276,2493.6,2493.1,0.8166]
[1730592034586,9.64881276,2493.6,2493.1,0.8166]
[1730592034945,4.01042,2493.5,2493.1,0.8166]
[1730592035159,5.63845276,2493.6,2493.1,0.8166]
[1730592036078,5.63845276,2493.6,2493.2,0.55]
[1730592039094,4.01043,2493.5,2493.2,0.55]
[1730592040147,4.01043,2493.5,2493.1,0.55]
[1730592040368,4.01043,2493.5,2493.0,3.67534282]
[1730592040571,4.01043,2493.5,2493.2,0.55]
[1730592043485,5.63845276,2493.6,2493.2,0.55]
[1730592043979,4.01046,2493.5,2493.2,0.55]
[1730592045314,4.01046,2493.5,2493.0,0.55]
[1730592045315,1.62819276,2493.4,2493.0,0.55]
[1730592045493,4.79122,2493.3,2493.0,0.55]
[1730592046072,6.10459641,2493.6,2493.1,0.7718]
[1730592046279,4.01028,2493.6,2493.2,0.55]
[1730592046518,5.63847276,2493.6,2493.2,0.55]
[1730592047321,4.01045,2493.5,2493.2,0.55]
[1730592049504,5.63886276,2493.4,2493.2,0.55]
[1730592053695,4.01067,2493.4,2493.2,0.55]
[1730592056937,4.01074,2493.3,2493.0,0.55]
[1730592057304,5.63886276,2493.4,2493.0,0.55]
[1730592057893,0.66333365,2493.4,2492.9,1.35261678]
[1730592058100,4.01115,2493.1,2492.9,1.35261678]
[1730592058301,1.62819276,2493.0,2492.9,1.35261678]
[1730592059335,1.62819276,2493.0,2492.9,1.90261678]
[1730592059503,5.63942276,2493.0,2492.9,1.90261678]
[1730592060738,5.63942276,2493.0,2492.9,1.35261678]
[1730592060951,6.68249904,2493.0,2492.5,0.7664]
[1730592061239,5.63942276,2493.0,2492.5,0.7664]
[1730592061733,3.72950735,2493.2,2492.5,0.7664]
[1730592062037,3.72950735,2493.2,2492.9,0.7664]
[1730592062038,1.62819276,2493.2,2492.9,0.7664]
[1730592062199,1.62819276,2493.2,2493.0,0.55]
[1730592062843,3.72950735,2493.4,2493.0,0.55]
[1730592063054,3.72950735,2493.6,2493.2,0.55]
[1730592063202,5.63846276,2493.6,2493.2,0.55]
[1730592063396,6.11154459,2493.7,2493.2,0.55]
[1730592063397,1.62819276,2493.4,2493.2,0.55]
[1730592063707,5.63857276,2493.6,2493.2,0.55]
[1730592063907,2.10131459,2493.7,2493.2,0.55]
[1730592064154,1.62819276,2493.8,2493.6,0.55]
[1730592064155,3.72950735,2493.8,2493.6,0.55]
[1730592064299,1.62819276,2493.8,2493.6,0.55]
[1730592064735,4.01024,2493.7,2493.5,0.7664]
[1730592064904,1.62819276,2493.6,2493.5,1.3164]
[1730592067914,1.62819276,2493.8,2493.5,1.3164]
[1730592069718,5.63816276,2493.8,2493.5,1.3164]
[1730592070045,1.62819276,2493.6,2493.5,1.3164]
[1730592079607,5.63845276,2493.6,2493.3,0.55]
[1730592079772,0.7762,2493.7,2493.3,0.55]
[1730592079773,1.62819276,2493.4,2493.3,0.55]
[1730592080312,1.62819276,2493.6,2493.3,0.55]
[1730592092319,7.79830171,2494.0,2493.4,0.55]
[1730592092515,1.62819276,2493.8,2493.4,0.55]
[1730592092731,1.54690304,2493.8,2493.4,0.55]
[1730592093135,1.54690304,2493.8,2493.5,0.8266]
[1730592093451,1.54690304,2493.8,2493.6,0.55]
[1730592093854,1.68848836,2494.0,2493.6,0.55]
[1730592095308,1.62819276,2493.8,2493.6,0.55]
[1730592119494,2.16323497,2494.0,2493.6,0.55]
[1730592119495,3.79142773,2494.0,2493.6,0.55]
[1730592119696,1.68848836,2494.0,2493.6,0.55]
[1730592124112,1.68848836,2494.0,2493.6,1.00771082]
[1730592124280,0.0602956,2494.0,2493.6,1.00771082]
[1730592124663,0.0602956,2494.0,2493.8,0.55]
[1730592125366,0.0602956,2494.0,2493.9,0.67529996]
[1730592128410,0.0602956,2494.0,2493.9,0.55]
[1730592128612,0.0602956,2494.0,2493.9,1.16855114]
[1730592128768,0.0602956,2494.0,2493.9,1.29384219]
[1730592129110,0.0602956,2494.0,2493.9,1.16855114]
[1730592129408,0.0602956,2494.0,2493.9,1.21365991]
[1730592129707,0.0602956,2494.0,2493.8,0.55]
[1730592130012,0.0602956,2494.0,2493.9,0.67529101]
[1730592130205,0.0602956,2494.0,2493.9,0.55]
[1730592130408,0.0602956,2494.0,2493.8,0.67529101]
[1730592130585,0.0602956,2494.0,2493.8,0.55]
[1730592130815,0.0602956,2494.0,2493.8,0.67529101]
[1730592131042,0.0602956,2494.0,2493.8,0.55]
[1730592131346,0.0602956,2494.0,2493.8,0.67529101]
[1730592131550,0.0602956,2494.0,2493.8,0.55]
[1730592131706,0.0602956,2494.0,2493.8,0.67529101]
[1730592131925,0.0602956,2494.0,2493.8,0.55]
[1730592132249,0.0602956,2494.0,2493.8,0.67529101]
[1730592132412,0.0602956,2494.0,2493.8,0.55]
[1730592132939,0.0602956,2494.0,2493.8,0.67529101]
[1730592133142,0.0602956,2494.0,2493.8,0.55]
[1730592134225,0.0602956,2494.0,2493.9,0.8313]
[1730592134615,0.0602956,2494.0,2493.9,1.3813]
[1730592134824,0.0602956,2494.0,2493.9,1.8869591]
[1730592135447,0.0602956,2494.0,2493.9,1.3813]
[1730592158366,0.0602956,2494.0,2493.9,1.50659122]
[1730592158543,0.0602956,2494.0,2493.9,1.3813]
[1730592158966,0.0602956,2494.0,2493.9,1.50659122]
[1730592159265,0.0602956,2494.0,2493.9,1.3813]
[1730592159763,0.0602956,2494.0,2493.9,1.50659122]
[1730592159970,0.0602956,2494.0,2493.9,2.06092576]
[1730592160167,0.0602956,2494.0,2493.9,1.93563454]
[1730592160464,0.0602956,2494.0,2493.9,2.06092576]
[1730592160770,0.0602956,2494.0,2493.9,1.93563454]
[1730592160980,0.0602956,2494.0,2493.9,2.06092576]
[1730592161138,0.7937,2493.9,2493.5,0.97876596]
[1730592161343,0.7937,2493.9,2493.6,0.12530701]
[1730592161633,0.7937,2493.9,2493.3,1.6113979]
[1730592161634,0.7937,2493.9,2493.7,0.12531438]
[1730592161841,0.7937,2493.9,2493.4,0.12531438]
[1730592162070,0.7937,2493.9,2493.5,0.12531424]
[1730592162276,0.7937,2493.9,2493.6,0.12531424]
[1730592162448,1.62819276,2493.8,2493.7,0.12531424]
[1730592162638,1.62819276,2493.8,2493.2,0.8330979]
[1730592162639,1.62819276,2493.8,2493.4,0.12531424]
[1730592162840,1.62819276,2493.8,2493.5,0.12531424]
[1730592163140,1.62819276,2493.8,2493.2,0.32582544]
[1730592163444,0.7937,2493.7,2493.3,0.81730525]
[1730592163633,0.7937,2493.7,2493.4,0.12532266]
[1730592163837,0.7937,2493.7,2493.6,0.55]
[1730592164050,0.7937,2493.7,2493.6,0.67532266]
[1730592164252,0.7937,2493.7,2493.3,0.12532234]
[1730592164447,0.7937,2493.7,2493.2,4.23784715]
[1730592164448,1.62819276,2493.6,2493.4,0.12532234]
[1730592164640,1.62819276,2493.6,2493.1,0.20050278]
[1730592164863,1.62819276,2493.6,2493.2,0.1253335]
[1730592165178,0.8242,2493.5,2492.9,1.5984979]
[1730592165390,0.8242,2493.5,2493.0,1.7257634]
[1730592165553,0.8242,2493.5,2493.2,0.55]
[1730592165745,0.8242,2493.5,2493.4,0.55]
[1730592165949,0.8242,2493.5,2493.4,0.67533456]
[1730592166174,0.8242,2493.5,2493.3,0.55]
[1730592166371,0.8242,2493.5,2493.4,0.67533456]
[1730592166554,0.8242,2493.5,2493.4,0.55]
[1730592166759,0.8242,2493.5,2493.4,0.67533456]
[1730592166989,0.8242,2493.5,2493.3,0.55]
[1730592167156,0.8242,2493.5,2493.4,0.67533456]
[1730592167365,0.8242,2493.5,2493.4,0.55]
[1730592167546,0.8242,2493.5,2493.4,0.67533456]
[1730592167744,0.8242,2493.5,2493.3,0.55]
[1730592167941,0.8242,2493.5,2493.4,0.67533456]
[1730592168175,0.8242,2493.5,2493.4,0.55]
[1730592168394,5.63823276,2493.8,2493.4,0.55]
[1730592168395,5.63823276,2493.8,2493.4,0.67533456]
[1730592168620,5.63823276,2493.8,2493.5,0.55]
[1730592168621,0.8242,2493.7,2493.5,0.55]
[1730592168905,0.8242,2493.7,2493.3,0.67532449]
[1730592169079,0.8242,2493.7,2493.5,0.55]
[1730592169279,0.8242,2493.7,2493.3,0.67532449]
[1730592171676,4.83438,2493.7,2493.3,0.67532449]
[1730592171974,4.83438,2493.7,2493.3,0.55]
[1730592172766,4.83438,2493.7,2493.2,0.12532449]
[1730592172767,4.83438,2493.7,2493.2,0.55]
[1730592172982,4.83438,2493.7,2493.2,1.14427902]
[1730592176224,4.83438,2493.7,2493.2,1.0189481]
[1730592180433,4.83438,2493.7,2493.2,0.55]
[1730592180711,4.83438,2493.7,2493.1,0.49941113]
[1730592180712,0.7605,2493.4,2493.1,0.55]
[1730592185823,2.38869276,2493.4,2493.1,0.55]
[1730592186569,2.38869276,2493.4,2493.0,0.55]
[1730592186772,2.38869276,2493.4,2493.0,0.6753301]
[1730592186950,2.38869276,2493.4,2493.0,1.31172468]
[1730592187338,0.7605,2493.4,2493.0,1.31172468]
[1730592191280,5.63826276,2493.8,2493.0,1.31172468]
[1730592191550,4.77061,2493.7,2493.2,0.55]
[1730592191847,4.77061,2493.7,2493.2,0.6753301]
[1730592191848,4.01044,2493.5,2493.2,0.6753301]
[1730592192046,4.01044,2493.5,2493.1,0.55]
[1730592192047,0.7605,2493.4,2493.1,0.55]
[1730592194084,0.7605,2493.4,2493.0,0.67533328]
[1730592194453,0.7605,2493.4,2493.2,0.55]
[1730592195266,0.7605,2493.4,2492.8,2.17131656]
[1730592195267,1.62819276,2493.4,2493.0,0.12533328]
[1730592195439,0.7888,2493.3,2492.9,0.12533328]
[1730592195636,0.7888,2493.2,2492.9,0.12533328]
[1730592195876,0.7888,2493.2,2492.8,1.47794984]
[1730592196180,0.7888,2493.2,2492.8,1.8911812]
[1730592196351,0.7888,2493.2,2492.8,2.01653229]
[1730592196549,0.7888,2493.2,2492.9,3.55]
[1730592196755,0.7888,2493.2,2492.9,3.67535109]
[1730592196959,6.42790276,2493.2,2492.9,0.67535109]
[1730592197162,6.42790276,2493.2,2492.9,0.55]
[1730592197382,6.42790276,2493.2,2492.7,0.55]
[1730592197593,0.7888,2493.1,2492.9,0.55]
[1730592197747,0.7888,2493.1,2492.7,0.55]
[1730592197945,0.7888,2493.1,2492.7,1.23018902]
[1730592198147,0.7888,2493.1,2492.9,0.55]
[1730592198645,0.7888,2493.1,2492.8,0.55]
[1730592199378,4.79996,2493.1,2492.7,0.55]
[1730592199600,4.79996,2493.1,2492.7,0.67535327]
[1730592199798,4.79996,2493.1,2492.7,0.55]
[1730592200076,1.62819276,2492.8,2492.7,0.67535327]
[1730592200277,1.62819276,2492.8,2492.7,0.55]
[1730592200479,6.42854276,2492.8,2492.5,0.12535327]
[1730592200691,6.42854276,2492.8,2492.4,2.31415371]
[1730592200692,4.01172,2492.7,2492.4,2.31415371]
[1730592200842,4.01172,2492.7,2492.4,2.18880044]
[1730592201051,2.41699276,2492.8,2492.4,0.96138443]
[1730592201245,6.42856276,2492.8,2492.4,0.96138443]
[1730592201479,6.42856276,2492.8,2492.4,0.83600773]
[1730592201983,6.42856276,2492.8,2492.5,0.55]
[1730592202179,6.42856276,2492.8,2492.5,0.6753767]
[1730592202488,0.7888,2492.7,2492.5,0.6753767]
[1730592202704,0.7888,2492.7,2492.5,0.55]
[1730592203903,0.7888,2492.7,2492.4,0.83600773]
[1730592203904,4.80083,2492.5,2492.4,0.83600773]
[1730592204183,6.42902276,2492.5,2492.4,0.83600773]
[1730592209475,4.01298,2492.0,2491.5,0.55]
[1730592209679,2.40919276,2491.9,2491.5,0.55]
[1730592210046,2.40919276,2491.9,2491.5,0.67541646]
[1730592210240,6.42223276,2491.9,2491.5,0.55]
[1730592210625,6.42223276,2491.9,2491.5,0.67541646]
[1730592210819,6.42223276,2491.9,2491.5,0.55]
[1730592211664,2.40919276,2491.9,2491.5,0.55]
[1730592211871,1.62819276,2492.1,2491.5,0.55]
[1730592212025,1.62819276,2492.1,2491.5,0.7781]
[1730592212231,1.62819276,2492.1,2491.6,0.55]
[1730592215669,1.62819276,2492.1,2491.6,0.98281]
[1730592216528,5.64089276,2492.1,2491.6,0.98281]
[1730592217478,0.781,2492.0,2491.6,0.98281]
[1730592218481,1.62819276,2491.9,2491.6,0.55]
[1730592218747,1.62819276,2491.9,2491.4,3.55]
[1730592219548,1.62819276,2491.9,2491.4,3.63026794]
[1730592219988,0.781,2492.0,2491.6,0.55]
[1730592220194,6.42155276,2492.3,2491.8,0.55]
[1730592220393,2.40919276,2492.3,2491.8,0.55]
[1730592221381,6.42156276,2492.3,2491.8,0.55]
[1730592221755,1.62819276,2492.1,2491.8,0.55]
[1730592229485,0.7903,2492.0,2491.8,0.55]
[1730592229710,0.7903,2492.0,2491.6,0.55]
[1730592231620,0.7903,2492.0,2491.6,0.98536]
[1730592235754,1.62819276,2491.9,2491.6,0.55]
[1730592236112,1.62819276,2491.9,2491.4,0.55]
[1730592236954,1.62819276,2491.9,2491.4,3.55]
[1730592240020,1.62819276,2491.7,2491.4,0.55]
[1730592242021,0.7693,2491.6,2491.2,0.55]
[1730592245035,1.62819276,2491.7,2491.2,0.55]
[1730592245669,1.62819276,2491.7,2491.2,0.77975647]
[1730592246987,1.62819276,2491.7,2491.2,3.77975647]
[1730592247159,1.62819276,2491.7,2491.2,0.77975647]
[1730592247475,1.62819276,2491.7,2491.2,3.77975647]
[1730592247655,1.62819276,2491.7,2491.2,0.77975647]
[1730592248064,1.62819276,2491.7,2491.4,0.55]
[1730592248382,4.0128,2492.1,2491.4,1.41617071]
[1730592248383,2.39749276,2492.1,2491.4,1.41617071]
[1730592248562,2.39749276,2492.1,2491.4,1.3359]
[1730592248563,1.62819276,2491.9,2491.4,1.3359]
[1730592249374,1.62819276,2491.9,2491.4,1.90213354]
[1730592249677,1.62819276,2491.9,2491.5,0.12541651]
[1730592249853,1.62819276,2491.7,2491.6,0.55]
[1730592250262,0.7693,2491.8,2491.6,0.55]
[1730592251362,0.7693,2491.8,2491.6,0.67542433]
[1730592252388,0.7693,2491.8,2491.6,0.55]
[1730592252599,0.7693,2491.8,2491.6,0.67542259]
[1730592253787,0.7693,2491.8,2491.6,0.67542338]
[1730592254557,0.7693,2491.8,2491.6,0.67542346]
[1730592254759,0.7693,2491.8,2491.6,0.55]
[1730592254959,0.7693,2491.8,2491.6,0.67542398]
[1730592255290,0.7693,2491.8,2491.6,0.67542391]
[1730592257665,0.7693,2491.8,2491.6,0.67542395]
[1730592257872,0.7693,2491.8,2491.6,0.55]
[1730592258260,0.7693,2491.8,2491.7,0.12541744]
[1730592259287,1.62819276,2491.9,2491.7,0.12541744]
[1730592261301,1.62819276,2491.9,2491.7,0.12541899]
[1730592261597,1.62819276,2491.9,2491.5,0.55]
[1730592261800,1.62819276,2491.9,2491.7,0.55]
[1730592262338,1.62819276,2491.9,2491.5,0.55]
[1730592262496,1.62819276,2491.9,2491.7,0.55]
[1730592262661,1.62819276,2491.9,2491.5,0.55]
[1730592262858,1.62819276,2491.9,2491.7,0.55]
[1730592263488,1.62819276,2491.9,2491.5,0.55]
[1730592263792,1.62819276,2491.9,2491.6,0.1254192]
[1730592263991,1.62819276,2491.9,2491.7,0.1254192]
[1730592264198,1.62819276,2491.9,2491.5,0.55]
[1730592264401,1.62819276,2491.9,2491.7,0.55]
[1730592265088,1.62819276,2491.9,2491.6,0.55]
[1730592265287,1.62819276,2491.9,2491.7,0.12541944]
[1730592265492,1.62819276,2491.9,2491.8,0.12541681]
[1730592265668,2.67034304,2491.9,2491.7,0.12542038]
[1730592266007,6.68339304,2491.9,2491.6,0.55]
[1730592266212,2.39569276,2491.7,2491.6,0.55]
[1730592266515,2.39569276,2491.7,2491.6,0.67542101]
[1730592266718,1.62819276,2491.7,2491.6,0.67542101]
[1730592269983,2.39569276,2491.9,2491.6,0.67542101]
[1730592270283,2.39569276,2491.9,2491.7,0.12542101]
[1730592270593,2.39569276,2491.9,2491.6,0.55]
[1730592270798,2.39569276,2491.9,2491.7,0.12541693]
[1730592271000,2.39569276,2491.9,2491.6,0.55]
[1730592271206,0.7675,2491.9,2491.7,0.12541978]
[1730592271407,1.62819276,2491.8,2491.7,0.55]
[1730592271579,1.62819276,2491.8,2491.7,0.67542019]
[1730592273587,1.62819276,2491.8,2491.7,0.12542208]
[1730592273789,1.62819276,2491.8,2491.7,0.67542208]
[1730592277393,1.62819276,2491.8,2491.6,0.55]
[1730592277604,1.62819276,2491.8,2491.7,0.1254201]
[1730592277925,1.62819276,2491.8,2491.7,0.6754201]
[1730592281331,1.62819276,2491.8,2491.6,0.55]
[1730592281530,1.62819276,2491.8,2491.7,0.55]
[1730592281846,1.62819276,2491.8,2491.7,0.67542047]
[1730592285110,1.62819276,2491.8,2491.7,0.67541973]
[1730592288850,1.62819276,2491.8,2491.7,0.12542096]
[1730592289149,1.62819276,2491.8,2491.7,0.67542096]
[1730592289947,0.7675,2491.9,2491.7,0.67542096]
[1730592290252,1.62819276,2492.0,2491.8,0.67542096]
[1730592290452,1.62819276,2492.0,2491.6,0.55]
[1730592290627,1.62819276,2492.0,2491.8,0.55]
[1730592290950,1.62819276,2492.0,2491.6,0.55]
[1730592291118,1.62819276,2492.0,2491.8,0.55]
[1730592291541,1.62819276,2492.0,2491.6,0.55]
[1730592291845,1.62819276,2492.0,2491.8,0.55]
[1730592292016,1.62819276,2492.0,2491.6,0.55]
[1730592292216,1.62819276,2492.0,2491.8,0.55]
[1730592292423,1.62819276,2492.0,2491.6,0.55]
[1730592292618,1.62819276,2492.0,2491.8,0.55]
[1730592292942,1.62819276,2492.0,2491.6,0.55]
[1730592293232,1.62819276,2492.0,2491.8,0.55]
[1730592293427,1.62819276,2492.0,2491.6,0.55]
[1730592293649,1.62819276,2492.0,2491.8,0.55]
[1730592293827,1.62819276,2492.0,2491.6,0.55]
[1730592294028,1.62819276,2492.0,2491.8,0.55]
[1730592294238,1.62819276,2492.0,2491.6,0.55]
[1730592294435,1.62819276,2491.8,2491.7,0.12541938]
[1730592294640,1.62819276,2491.8,2491.7,0.67541938]
[1730592296162,1.62819276,2492.0,2491.8,0.55]
[1730592296369,1.62819276,2492.0,2491.9,0.67541938]
[1730592301347,2.39929276,2492.0,2491.9,0.67541938]
[1730592301549,2.39929276,2492.0,2491.9,0.55]
[1730592302040,2.39929276,2492.0,2491.9,0.67541359]
[1730592302367,2.39929276,2492.0,2491.9,0.55]
[1730592302675,2.39929276,2492.0,2491.9,0.67541064]
[1730592302887,3.04047404,2492.0,2491.9,0.67541064]
[1730592303166,3.04047404,2492.0,2491.4,3.0]
[1730592303167,8.04032552,2492.0,2491.7,0.55]
[1730592303474,2.39929276,2491.8,2491.5,0.55]
[1730592303703,0.7711,2491.8,2491.6,0.12542459]
[1730592303983,0.7711,2491.8,2491.7,0.67542459]
[1730592304556,0.7711,2491.9,2491.8,0.55]
[1730592304756,1.33523328,2491.9,2491.8,0.55]
[1730592305480,1.33523328,2491.9,2491.4,0.55]
[1730592305786,4.78411,2491.9,2491.6,0.55]
[1730592305998,4.78411,2491.9,2491.7,0.12542184]
[1730592306153,1.62819276,2491.8,2491.7,0.55]
[1730592306359,1.62819276,2491.8,2491.7,0.67542276]
[1730592307290,6.41245276,2491.8,2491.7,0.67542276]
[1730592307455,7.61781831,2491.8,2491.7,0.67542276]
[1730592307855,3.60465831,2491.8,2491.7,0.67542276]
[1730592311211,3.60465831,2491.8,2491.5,0.55]
[1730592311694,3.60465831,2491.8,2491.5,1.3273]
[1730592311695,1.62819276,2491.8,2491.5,1.3273]
[1730592311854,2.39929276,2492.0,2491.7,0.55]
[1730592312058,2.39929276,2492.0,2491.7,0.6754283]
[1730592312257,1.62819276,2491.8,2491.7,1.00859688]
[1730592312476,1.62819276,2491.8,2491.7,1.70185331]
[1730592312677,1.62819276,2492.0,2491.8,0.7773]
[1730592312871,1.62819276,2492.0,2491.9,0.79791533]
[1730592313861,1.62819276,2492.2,2492.0,0.8094]
[1730592314091,1.62819276,2492.2,2492.1,0.67540102]
[1730592314260,1.62819276,2492.2,2492.1,0.55]
[1730592314456,1.62819276,2492.2,2492.1,0.67539957]
[1730592317463,1.62819276,2492.2,2492.1,0.55]
[1730592318292,1.62819276,2492.2,2492.1,0.67539641]
[1730592319824,1.62819276,2492.2,2492.1,0.55]
[1730592320024,1.62819276,2492.2,2492.1,0.67539641]
[1730592320227,1.62819276,2492.2,2492.1,0.55]
[1730592320725,1.62819276,2492.4,2492.1,0.55]
[1730592323234,1.62819276,2492.4,2492.2,0.55]
[1730592323594,1.62819276,2492.6,2492.2,0.55]
[1730592330123,1.62819276,2492.4,2492.2,0.55]
[1730592336069,1.62819276,2492.4,2491.9,0.92098955]
[1730592336070,6.39653276,2492.4,2491.9,0.92098955]
[1730592336355,1.62819276,2492.0,2491.7,0.7956]
[1730592337218,0.7561,2492.1,2491.4,0.7956]
[1730592337219,1.62819276,2491.8,2491.4,0.7956]
[1730592337509,1.62819276,2491.6,2491.1,1.162643]
[1730592337758,1.62819276,2491.6,2491.2,0.7956]
[1730592339557,1.62819276,2491.4,2491.2,0.7956]
[1730592340127,1.62819276,2491.4,2491.0,2.27461017]
[1730592340356,1.62819276,2491.4,2491.0,2.1492065]
[1730592341870,1.62819276,2491.4,2491.1,0.55]
[1730592342433,2.38429276,2491.4,2491.1,0.55]
[1730592347252,0.7561,2491.4,2491.1,0.55]
[1730592350059,1.62819276,2491.6,2491.3,0.55]
[1730592350261,2.45939925,2491.6,2491.3,0.55]
[1730592352078,6.47294925,2491.6,2491.1,0.55]
[1730592353588,1.62819276,2491.6,2491.1,0.55]
[1730592356323,5.64167276,2491.6,2491.1,0.55]
[1730592357008,1.62819276,2491.6,2491.1,0.55]
[1730592360411,1.62819276,2491.4,2491.1,0.55]
[1730592361930,0.7972,2491.3,2491.0,1.3536065]
[1730592363227,0.7972,2491.3,2491.1,0.55]
[1730592363393,4.81118,2491.3,2491.1,0.55]
[1730592364636,0.7972,2491.3,2491.1,0.55]
[1730592374455,1.62819276,2491.2,2491.1,0.55]
[1730592378322,0.7972,2491.3,2491.1,0.55]
[1730592379859,0.7972,2491.3,2490.9,0.55]
[1730592381021,1.62819276,2491.2,2490.9,0.55]
[1730592382329,0.7972,2491.3,2490.9,0.55]
[1730592383259,1.62819276,2491.0,2490.8,0.55]
[1730592383414,1.62819276,2491.0,2490.8,0.6754508]
[1730592383751,1.84249628,2491.3,2490.8,0.55]
[1730592383752,1.62819276,2491.2,2490.8,0.55]
[1730592384423,1.62819276,2491.2,2490.8,0.6754508]
[1730592384761,1.62819276,2491.2,2490.8,0.55]
[1730592384921,1.62819276,2491.2,2490.8,0.6754508]
[1730592385228,1.62819276,2491.2,2490.8,0.55]
[1730592385429,1.62819276,2491.2,2490.8,0.6754508]
[1730592385732,1.62819276,2491.2,2490.8,0.55]
[1730592385939,1.62819276,2491.2,2490.8,0.6754508]
[1730592386193,1.62819276,2491.2,2490.8,0.55]
[1730592386418,0.7972,2491.3,2490.8,0.55]
[1730592386671,0.7972,2491.3,2491.0,0.55]
[1730592389283,2.10411443,2491.5,2491.0,0.55]
[1730592389454,6.11776443,2491.5,2491.0,0.6754482]
[1730592389638,4.01365,2491.5,2491.0,0.6754482]
[1730592389846,4.01365,2491.5,2491.0,0.67544742]
[1730592390044,6.11776443,2491.5,2491.0,0.67544742]
[1730592390263,10.13149443,2491.5,2491.0,0.67544742]
[1730592390632,8.02738,2491.5,2491.0,0.67544742]
[1730592390835,8.02738,2491.5,2491.1,0.7833]
[1730592390836,6.11850973,2491.5,2491.1,0.7833]
[1730592391172,11.17539701,2491.5,2491.2,0.55]
[1730592395224,7.16167701,2491.5,2491.2,0.55]
[1730592395429,11.17586932,2491.5,2491.2,0.55]
[1730592395633,7.16208932,2491.5,2491.2,0.55]
[1730592396515,4.01384,2491.4,2491.2,0.55]
[1730592397722,1.62819276,2491.4,2491.2,0.55]
[1730592398131,2.10527204,2491.5,2491.2,0.55]
[1730592398333,2.10527204,2491.7,2491.0,0.55]
[1730592398653,2.10527204,2491.7,2490.8,4.87937665]
[1730592398654,2.10527204,2491.6,2491.2,0.55]
[1730592399275,2.10527204,2491.7,2491.0,0.55]
[1730592399561,2.10527204,2491.9,2491.3,0.55]
[1730592399769,2.10502138,2491.9,2491.5,0.55]
[1730592400251,2.10502138,2491.9,2491.3,0.67542111]
[1730592400462,2.10502138,2491.9,2491.5,0.55]
[1730592400760,2.10502138,2491.9,2491.3,0.55]
[1730592400959,2.10502138,2491.9,2491.5,0.55]
[1730592401391,3.73321414,2492.0,2491.3,0.55]
[1730592401670,3.73321414,2492.0,2491.5,0.55]
[1730592402026,3.73321414,2492.0,2491.3,0.67541803]
[1730592402231,3.73321414,2492.0,2491.5,0.55]
[1730592402434,3.73321414,2492.2,2491.5,0.75567809]
[1730592402664,2.10502138,2492.1,2491.5,0.67541039]
[1730592403042,2.10502138,2492.1,2491.5,0.55]
[1730592403371,2.10502138,2492.1,2491.7,0.55]
[1730592404972,1.62819276,2491.8,2491.7,0.55]
[1730592405148,1.62819276,2491.8,2491.5,0.55]
[1730592412140,4.77991,2491.9,2491.5,0.55]
[1730592416675,1.62819276,2491.8,2491.5,0.55]
[1730592416889,5.64136276,2491.8,2491.5,0.55]
[1730592417036,6.89372386,2491.8,2491.5,0.55]
[1730592417240,6.89372386,2491.8,2491.3,0.55]
[1730592417469,2.88055386,2491.8,2491.3,0.55]
[1730592420440,2.40299276,2491.6,2491.3,0.55]
[1730592423680,6.41655276,2491.6,2491.1,0.55]
[1730592423881,0.45710739,2491.5,2491.1,0.55]
[1730592424591,1.62819276,2491.4,2491.1,0.55]
[1730592427862,1.62819276,2491.4,2490.6,0.12545065]
[1730592427863,1.62819276,2491.2,2490.9,0.55]
[1730592429744,0.7748,2491.3,2490.9,0.55]
[1730592430190,4.78877,2491.3,2490.9,0.55]
[1730592430359,1.62819276,2491.2,2490.9,0.55]
[1730592432694,5.47616302,2491.3,2490.9,0.55]
[1730592437289,4.78877,2491.3,2490.9,0.55]
[1730592438419,4.01413,2491.2,2490.9,0.55]
[1730592439196,5.64232276,2491.2,2490.9,0.55]
[1730592441399,9.65659276,2491.2,2490.9,0.55]
[1730592441897,5.64232276,2491.2,2490.9,0.55]
[1730592442220,6.28403504,2491.2,2490.9,0.55]
[1730592442434,10.29825504,2491.2,2490.9,0.55]
[1730592442606,1.62819276,2491.0,2490.6,0.755]
[1730592442815,4.01461,2490.9,2490.6,0.755]
[1730592444010,4.01461,2490.9,2490.7,0.55]
[1730592445381,1.62819276,2490.8,2490.7,0.55]
[1730592445609,1.62819276,2490.8,2490.4,0.12547012]
[1730592445610,1.62819276,2490.8,2490.5,0.55]
[1730592447321,6.46827276,2491.0,2490.5,0.55]
[1730592448708,1.62819276,2490.8,2490.5,0.55]